bitfinex/quotes_SOLUSD_20251018
["timestamp","ask_amount","ask_price","bid_price","bid_amount"]
[1760823574674,0.35,187.44,187.41,0.72]
[1760823574868,0.35,187.45,187.41,0.72]
[1760823575861,0.35,187.45,187.38,36.22122003]
[1760823575862,0.35,187.44,187.39,5.33646405]
[1760823576067,0.35,187.43,187.39,5.33646405]
[1760823576377,3.81286024,187.43,187.38,0.72]
[1760823576575,0.35,187.42,187.38,0.72]
[1760823577374,0.35,187.41,187.36,8.80006193]
[1760823577674,0.35,187.42,187.37,0.72]
[1760823577874,0.35,187.42,187.38,0.72]
[1760823578370,3.46286024,187.42,187.35,26.34286024]
[1760823578572,3.81286024,187.41,187.35,32.40040693]
[1760823578751,3.81286024,187.41,187.36,0.72]
[1760823579166,3.81286024,187.4,187.35,5.33754669]
[1760823579362,3.81286024,187.4,187.36,0.72]
[1760823579879,3.46286024,187.39,187.36,0.72]
[1760823580074,3.81286024,187.39,187.35,0.72]
[1760823581170,3.46286024,187.38,187.35,0.72]
[1760823583169,3.46286024,187.38,187.36,0.72]
[1760823583777,23.23,187.4,187.36,0.72]
[1760823583963,5.33592399,187.41,187.32,13.34605136]
[1760823583964,3.46286024,187.41,187.37,0.69]
[1760823584171,102.1,187.4,187.37,0.69]
[1760823584369,102.1,187.39,187.37,0.69]
[1760823584865,102.1,187.39,187.38,0.69]
[1760823586782,102.1,187.39,187.38,9.48960909]
[1760823587978,3.46286024,187.44,187.38,9.48960909]
[1760823588283,3.46286024,187.44,187.39,0.69]
[1760823589081,3.46286024,187.44,187.39,6.02634033]
[1760823589283,3.46286024,187.44,187.4,0.69]
[1760823589576,3.46286024,187.43,187.41,0.69]
[1760823590781,3.46286024,187.43,187.39,0.69]
[1760823590963,3.46286024,187.43,187.4,0.69]
[1760823591470,3.46286024,187.43,187.41,0.69]
[1760823591669,3.46286024,187.43,187.38,5.33674885]
[1760823591973,3.46286024,187.43,187.39,6.02627811]
[1760823592174,3.46286024,187.43,187.4,0.69]
[1760823593487,102.1,187.42,187.4,0.69]
[1760823600288,102.1,187.47,187.41,3.46286024]
[1760823600489,1e-08,187.5,187.43,3.46286024]
[1760823600673,1e-08,187.5,187.45,3.46286024]
[1760823600873,1e-08,187.5,187.46,3.46286024]
[1760823601486,1e-08,187.5,187.47,0.69]
[1760823602071,1e-08,187.5,187.47,6.02392457]
[1760823602474,1e-08,187.5,187.48,0.69]
[1760823602785,1e-08,187.5,187.49,3.46286024]
[1760823602988,1e-08,187.5,187.48,4.15286024]
[1760823603370,1e-08,187.5,187.49,0.69]
[1760823604063,1e-08,187.5,187.49,6.02361779]
[1760823604787,1e-08,187.5,187.49,0.69]
[1760823605869,1e-08,187.5,187.48,0.69]
[1760823607285,1e-08,187.5,187.47,5.33417301]
[1760823607492,1e-08,187.5,187.49,0.66]
[1760823607701,1e-08,187.5,187.48,0.66]
[1760823608296,3.46286025,187.5,187.46,0.66]
[1760823608490,105.91286025,187.5,187.46,0.66]
[1760823609471,3.46286024,187.49,187.46,0.66]
[1760823611591,105.91286025,187.5,187.46,0.66]
[1760823614301,102.1,187.49,187.46,0.66]
[1760823614795,102.1,187.49,187.46,5.99439788]
[1760823615299,102.1,187.49,187.47,0.68]
[1760823615495,102.1,187.49,187.48,0.68]
[1760823615875,102.1,187.49,187.44,6.01479966]
[1760823615876,105.91286024,187.49,187.44,6.01479966]
[1760823616076,3.46286024,187.48,187.44,6.01479966]
[1760823616276,102.1,187.49,187.46,5.33447135]
[1760823616702,102.1,187.49,187.47,0.68]
[1760823616880,102.1,187.49,187.46,5.33447135]
[1760823617191,102.1,187.49,187.48,0.68]
[1760823619891,102.1,187.49,187.48,6.01390228]
[1760823628107,102.1,187.49,187.45,22.88]
[1760823628415,102.1,187.49,187.45,0.68]
[1760823628416,105.91286024,187.49,187.45,0.68]
[1760823628910,105.91286024,187.49,187.43,42.23347201]
[1760823628911,0.35,187.48,187.43,42.23347201]
[1760823629112,3.81286024,187.48,187.43,42.23347201]
[1760823629301,3.81286024,187.48,187.43,18.67347201]
[1760823629618,3.81286024,187.48,187.45,5.33475593]
[1760823629999,3.46286024,187.48,187.45,5.33475593]
[1760823630203,3.46286024,187.48,187.44,6.01497676]
[1760823630204,3.81286024,187.48,187.44,6.01497676]
[1760823631402,3.46286024,187.48,187.44,6.01497676]
[1760823631707,102.45,187.49,187.44,6.01497676]
[1760823631907,3.46286024,187.48,187.44,6.01497676]
[1760823632608,3.46286024,187.47,187.44,6.01497676]
[1760823632808,3.46286024,187.47,187.44,5.33497676]
[1760823632809,3.81286024,187.47,187.44,5.33497676]
[1760823633514,102.1,187.46,187.44,5.33497676]
[1760823636009,102.1,187.46,187.42,5.33560986]
[1760823636209,102.45,187.46,187.42,6.01560986]
[1760823636406,102.1,187.46,187.42,5.33560986]
[1760823636593,102.1,187.46,187.43,0.68]
[1760823636901,102.1,187.46,187.42,5.33560986]
[1760823636902,105.56286024,187.46,187.42,5.33560986]
[1760823637115,105.56286024,187.46,187.42,6.01560986]
[1760823637314,105.91286024,187.46,187.42,6.01560986]
[1760823637620,102.1,187.45,187.42,6.01560986]
[1760823639121,102.1,187.45,187.43,6.01518767]
[1760823646427,102.1,187.45,187.42,5.33560986]
[1760823646736,102.1,187.45,187.42,6.02560986]
[1760823649627,102.45,187.45,187.42,5.33560986]
[1760823650039,102.1,187.45,187.42,6.02560986]
[1760823651117,102.45,187.45,187.42,5.33560986]
[1760823651643,102.45,187.45,187.42,6.02560986]
[1760823652040,102.1,187.45,187.42,6.02560986]
[1760823652336,102.1,187.45,187.43,0.69]
[1760823653050,102.1,187.45,187.42,5.33560986]
[1760823653230,102.1,187.45,187.42,6.02560986]
[1760823656837,0.35,187.44,187.41,5.33584487]
[1760823657335,0.35,187.44,187.4,6.02610816]
[1760823657546,105.91286024,187.43,187.38,6.02667238]
[1760823657839,109.15894263,187.42,187.37,0.69]
[1760823658043,3.46286024,187.41,187.37,0.69]
[1760823658223,3.81286024,187.41,187.37,0.69]
[1760823658825,3.46286024,187.41,187.37,5.33689654]
[1760823659036,3.46286024,187.41,187.37,6.02689654]
[1760823659223,105.56286024,187.42,187.37,6.02689654]
[1760823659544,105.91286024,187.42,187.37,6.02689654]
[1760823659749,105.91286024,187.42,187.38,0.69]
[1760823660248,3.46286024,187.41,187.37,5.33689654]
[1760823660548,3.46286024,187.41,187.35,16.80684713]
[1760823660549,3.81286024,187.41,187.36,6.0272596]
[1760823660748,3.81286024,187.41,187.37,0.69]
[1760823661642,3.81286024,187.41,187.37,6.0269918]
[1760823662849,3.81286024,187.41,187.36,5.33731853]
[1760823663164,3.46286024,187.41,187.38,0.69]
[1760823667562,3.46286024,187.41,187.37,5.33697336]
[1760823667563,102.1,187.4,187.36,6.03731853]
[1760823667742,102.1,187.4,187.37,0.7]
[1760823669158,102.1,187.4,187.38,0.7]
[1760823670860,102.1,187.4,187.37,6.03703045]
[1760823671439,105.91286024,187.4,187.35,6.03733317]
[1760823671639,3.81286024,187.39,187.35,6.03733317]
[1760823672135,102.1,187.38,187.35,5.33733317]
[1760823672337,102.1,187.38,187.36,0.7]
[1760823672576,102.45,187.38,187.34,6.03788833]
[1760823672757,102.45,187.38,187.33,0.7]
[1760823672758,3.81286024,187.37,187.33,0.7]
[1760823673274,3.46286024,187.35,187.3,5.5389888]
[1760823673571,0.35,187.36,187.3,0.9]
[1760823673572,0.35,187.34,187.3,0.9]
[1760823673753,0.35,187.33,187.3,0.2]
[1760823674266,0.35,187.35,187.3,0.9]
[1760823674570,0.35,187.34,187.3,0.9]
[1760823675152,0.35,187.33,187.3,0.2]
[1760823675346,0.35,187.35,187.3,0.9]
[1760823675544,3.81286024,187.34,187.3,0.2]
[1760823675746,26.34286024,187.33,187.3,0.2]
[1760823675961,3.46286024,187.32,187.3,0.2]
[1760823676162,11.22647521,187.32,187.3,0.2]
[1760823676465,14.68933545,187.32,187.3,0.2]
[1760823676671,11.22647521,187.32,187.3,0.2]
[1760823677162,0.35,187.31,187.3,0.2]
[1760823678475,11.22647521,187.31,187.3,0.2]
[1760823678771,20.0280787,187.31,187.3,0.2]
[1760823683674,22.16969294,187.31,187.3,0.2]
[1760823686290,44.69969294,187.31,187.3,0.2]
[1760823687276,45.04969294,187.31,187.3,0.2]
[1760823694781,44.69969294,187.31,187.3,0.2]
[1760823696271,45.04969294,187.31,187.3,0.2]
[1760823696467,44.69969294,187.31,187.3,0.2]
[1760823698183,21.81969294,187.31,187.3,0.2]
[1760823698489,44.69969294,187.31,187.3,0.2]
[1760823699189,41.2368327,187.31,187.3,0.9]
[1760823699489,39.36094969,187.31,187.3,0.9]
[1760823700283,44.69969294,187.31,187.3,0.9]
[1760823700686,10.87647521,187.31,187.3,0.9]
[1760823700884,3.46286024,187.32,187.3,0.9]
[1760823701090,3.46286024,187.31,187.3,0.2]
[1760823702002,37.21933545,187.31,187.3,0.2]
[1760823702505,37.21933545,187.31,187.3,0.9]
[1760823702506,42.5580787,187.31,187.3,0.9]
[1760823710995,37.21933545,187.31,187.3,0.9]
[1760823714413,42.5580787,187.31,187.3,0.9]
[1760823716206,46.15336834,187.31,187.3,0.9]
[1760823716991,40.81462509,187.31,187.3,0.9]
[1760823717204,17.93462509,187.31,187.3,0.9]
[1760823730320,3.59528964,187.31,187.3,0.9]
[1760823731425,3.59528964,187.31,187.3,6.23902829]
[1760823731826,7.05814988,187.34,187.3,6.23902829]
[1760823732024,3.59528964,187.33,187.3,5.53902829]
[1760823732326,3.46286024,187.34,187.31,0.68]
[1760823732531,3.60376375,187.33,187.31,0.68]
[1760823732829,3.46286024,187.34,187.31,0.68]
[1760823733031,3.60376419,187.33,187.31,0.68]
[1760823733333,3.46286024,187.34,187.31,0.68]
[1760823733529,3.6028124,187.33,187.31,0.68]
[1760823733826,3.46286024,187.34,187.31,0.68]
[1760823734026,3.6028124,187.33,187.31,0.68]
[1760823734230,3.46286024,187.34,187.31,0.68]
[1760823734416,3.60275218,187.33,187.31,0.68]
[1760823734612,3.46286024,187.34,187.31,0.68]
[1760823734937,3.60202612,187.33,187.31,0.68]
[1760823735226,3.46286024,187.34,187.31,0.68]
[1760823735408,102.1,187.33,187.31,0.68]
[1760823740218,102.1,187.33,187.31,6.01873709]
[1760823740624,102.1,187.33,187.31,5.33873709]
[1760823740811,102.1,187.33,187.32,0.7]
[1760823743521,102.1,187.33,187.32,6.03845825]
[1760823743924,105.56286024,187.39,187.32,9.50131849]
[1760823744132,3.59835483,187.38,187.33,0.7]
[1760823744330,3.59835483,187.38,187.33,4.16286024]
[1760823744540,3.59835483,187.38,187.32,18.68460388]
[1760823744541,102.1,187.39,187.34,4.16286024]
[1760823744842,102.1,187.39,187.35,0.7]
[1760823745144,102.1,187.39,187.35,6.03732378]
[1760823745454,102.1,187.39,187.36,0.7]
[1760823746143,102.1,187.39,187.36,6.03719298]
[1760823746526,102.1,187.39,187.37,0.7]
[1760823747349,102.1,187.39,187.37,6.03683499]
[1760823747728,102.1,187.39,187.38,0.7]
[1760823749750,102.1,187.39,187.38,6.03674885]
[1760823760656,102.1,187.39,187.38,9.49960909]
[1760823761350,105.91286024,187.44,187.38,22.84148122]
[1760823761553,102.1,187.43,187.39,0.7]
[1760823762352,102.1,187.43,187.4,6.03603958]
[1760823764454,102.1,187.43,187.39,5.33646405]
[1760823764662,102.1,187.43,187.41,0.68]
[1760823764859,102.1,187.43,187.4,3.46286024]
[1760823765065,102.1,187.43,187.42,0.68]
[1760823765372,3.81286024,187.46,187.42,0.68]
[1760823766168,3.46286024,187.46,187.42,0.68]
[1760823766464,3.46286024,187.46,187.43,5.33532518]
[1760823766768,105.91286024,187.47,187.43,5.91532518]
[1760823768466,102.45,187.47,187.44,0.68]
[1760823770066,102.45,187.47,187.44,6.01497446]
[1760823771070,102.1,187.46,187.44,6.01497446]
[1760823773770,105.56286024,187.46,187.44,6.01497446]
[1760823774275,105.56286024,187.46,187.43,0.68]
[1760823775978,102.1,187.46,187.44,5.33504054]
[1760823778676,105.91286024,187.46,187.42,6.01560986]
[1760823779175,105.91286024,187.46,187.42,5.33560986]
[1760823779377,105.91286024,187.46,187.43,0.68]
[1760823779584,105.56286024,187.46,187.43,0.68]
[1760823780682,102.45,187.46,187.43,6.01505461]
[1760823781481,102.1,187.46,187.43,6.01505461]
[1760823782675,3.46286024,187.45,187.41,6.01563918]
[1760823782874,102.1,187.44,187.41,6.01563918]
[1760823783281,105.56286024,187.44,187.41,6.01563918]
[1760823783475,102.1,187.44,187.41,6.01563918]
[1760823783784,102.45,187.44,187.41,6.01563918]
[1760823783970,102.1,187.44,187.41,6.01563918]
[1760823784554,102.45,187.44,187.39,19.35757008]
[1760823784756,102.1,187.43,187.4,0.68]
[1760823784973,102.1,187.43,187.39,18.67757008]
[1760823785159,102.45,187.43,187.39,19.35757008]
[1760823785561,102.45,187.43,187.39,6.01646405]
[1760823787584,105.91286024,187.43,187.39,6.01646405]
[1760823787967,0.35,187.42,187.39,6.01646405]
[1760823788485,105.91286024,187.43,187.39,6.01646405]
[1760823788795,102.1,187.42,187.39,6.01646405]
[1760823792991,0.35,187.41,187.38,5.33674885]
[1760823793196,102.1,187.42,187.38,5.99674885]
[1760823793388,102.45,187.42,187.38,5.99674885]
[1760823794097,102.1,187.42,187.39,6.03631034]
[1760823794592,102.1,187.41,187.39,6.03631034]
[1760823795492,102.1,187.41,187.38,0.7]
[1760823795800,102.1,187.41,187.37,3.46286024]
[1760823795995,102.1,187.41,187.38,0.7]
[1760823796189,102.1,187.41,187.37,3.46286024]
[1760823796190,102.1,187.41,187.39,0.7]
[1760823797696,102.1,187.41,187.39,6.03645075]
[1760823800804,102.1,187.41,187.38,6.03674885]
[1760823801102,102.1,187.41,187.38,5.33674885]
[1760823801310,102.1,187.41,187.39,0.7]
[1760823802698,102.1,187.41,187.39,6.03639709]
[1760823809908,102.1,187.41,187.36,13.34268957]
[1760823810112,102.1,187.41,187.39,0.7]
[1760823811116,102.1,187.41,187.39,6.03643524]
[1760823813214,102.1,187.41,187.39,0.7]
[1760823814916,102.1,187.41,187.38,5.33674885]
[1760823814917,102.1,187.41,187.38,6.03674885]
[1760823815098,102.1,187.41,187.37,5.33703367]
[1760823815299,102.1,187.41,187.38,0.7]
[1760823815507,102.1,187.41,187.37,5.33703367]
[1760823815508,102.45,187.41,187.37,5.33703367]
[1760823815695,105.91286024,187.41,187.37,6.03703367]
[1760823815900,102.45,187.4,187.37,5.33703367]
[1760823816206,102.45,187.4,187.36,6.03729497]
[1760823817314,102.1,187.39,187.36,6.03729497]
[1760823817516,102.1,187.39,187.34,26.34286024]
[1760823817517,105.91286024,187.39,187.35,5.33752888]
[1760823817816,0.35,187.38,187.35,5.33752888]
[1760823818394,3.46286024,187.38,187.35,5.33752888]
[1760823818612,3.46286024,187.38,187.33,13.34473035]
[1760823818613,0.35,187.37,187.33,5.33793167]
[1760823818811,0.35,187.37,187.33,6.03793167]
[1760823820500,3.46286024,187.38,187.34,6.03782694]
[1760823820716,3.81286024,187.38,187.34,6.03782694]
[1760823821512,0.35,187.37,187.34,6.03782694]
[1760823822417,3.46286024,187.38,187.3,0.2]
[1760823822418,3.46286024,187.35,187.3,0.2]
[1760823822622,3.46286024,187.35,187.31,0.7]
[1760823822917,102.45,187.36,187.32,0.7]
[1760823825317,0.35,187.35,187.32,0.7]
[1760823825518,102.1,187.36,187.32,0.7]
[1760823825815,102.45,187.36,187.32,0.7]
[1760823826320,0.35,187.35,187.32,0.7]
[1760823826901,0.35,187.35,187.31,6.04868244]
[1760823827321,102.1,187.34,187.31,6.04868244]
[1760823827519,102.1,187.34,187.31,0.71]
[1760823827721,102.1,187.34,187.3,0.2]
[1760823827919,102.1,187.34,187.31,0.71]
[1760823829106,102.1,187.33,187.31,0.71]
[1760823829914,102.1,187.33,187.3,0.91]
[1760823830114,102.1,187.32,187.3,0.91]
[1760823830924,102.1,187.32,187.31,0.71]
[1760823832430,102.1,187.32,187.31,6.04874325]
[1760823833528,102.1,187.38,187.34,22.88]
[1760823833836,102.1,187.38,187.35,0.71]
[1760823834039,102.1,187.38,187.35,4.17286024]
[1760823834408,102.1,187.38,187.36,0.71]
[1760823834615,0.35,187.44,187.36,4.17286024]
[1760823834814,7.0529472,187.43,187.37,0.71]
[1760823835317,7.0529472,187.43,187.38,5.33674885]
[1760823835517,3.46286024,187.43,187.39,0.71]
[1760823835836,3.81286024,187.43,187.39,0.71]
[1760823836217,3.46286024,187.43,187.39,0.71]
[1760823836424,3.81286024,187.43,187.39,0.71]
[1760823837319,3.46286024,187.42,187.39,0.71]
[1760823837533,3.46286024,187.42,187.38,5.33674885]
[1760823837534,3.46286024,187.41,187.38,5.33674885]
[1760823837839,3.81286024,187.41,187.37,6.04697698]
[1760823838413,3.46286024,187.4,187.37,6.04697698]
[1760823838632,3.81286024,187.41,187.37,6.04697698]
[1760823839226,3.81286024,187.41,187.37,0.71]
[1760823839422,3.46286024,187.41,187.36,5.33726164]
[1760823839628,3.81286024,187.41,187.36,6.04726164]
[1760823839930,3.46286024,187.4,187.36,5.33726164]
[1760823840134,3.46286024,187.4,187.37,0.71]
[1760823841137,3.46286024,187.4,187.36,6.04726164]
[1760823841138,3.81286024,187.4,187.36,6.04726164]
[1760823841460,102.1,187.39,187.36,0.71]
[1760823842034,105.56286024,187.39,187.36,0.71]
[1760823842546,105.91286024,187.39,187.34,0.71]
[1760823842733,105.91286024,187.39,187.35,0.71]
[1760823843424,105.56286024,187.39,187.36,0.71]
[1760823843625,105.91286024,187.39,187.35,0.71]
[1760823844938,102.1,187.38,187.35,0.71]
[1760823850453,102.45,187.38,187.34,5.33763549]
[1760823850666,102.1,187.38,187.35,0.7]
[1760823850958,102.1,187.37,187.35,0.7]
[1760823852639,102.1,187.37,187.35,5.33758569]
[1760823853764,102.1,187.37,187.33,5.33817327]
[1760823854059,102.1,187.36,187.34,0.71]
[1760823854848,102.1,187.36,187.34,6.04766845]
[1760823855438,102.1,187.36,187.34,5.33766845]
[1760823855742,102.1,187.36,187.35,0.71]
[1760823857765,102.1,187.36,187.34,5.33766845]
[1760823857766,102.1,187.36,187.34,0.71]
[1760823858965,102.1,187.36,187.35,5.33760341]
[1760823861272,102.1,187.36,187.32,18.68457911]
[1760823861472,102.1,187.36,187.34,0.71]
[1760823862273,102.1,187.36,187.34,6.04760605]
[1760823865970,102.1,187.35,187.34,5.33760605]
[1760823866974,102.1,187.35,187.32,13.34612086]
[1760823867277,102.1,187.35,187.33,0.71]
[1760823868778,102.1,187.35,187.33,6.04792144]
[1760823882664,102.1,187.35,187.34,0.71]
[1760823883465,105.91286024,187.41,187.34,0.71]
[1760823883675,105.70516811,187.4,187.34,4.17286024]
[1760823883879,3.60516811,187.39,187.35,0.66]
[1760823884085,3.60516811,187.38,187.35,0.66]
[1760823884390,105.56286024,187.4,187.35,0.66]
[1760823884570,3.6053552,187.39,187.36,5.33731853]
[1760823884771,3.6053552,187.38,187.36,5.99731853]
[1760823884971,105.91286024,187.4,187.36,5.99731853]
[1760823885174,3.6053539,187.39,187.36,5.99731853]
[1760823885477,3.6053539,187.38,187.36,5.99731853]
[1760823885679,105.91286024,187.4,187.36,5.99731853]
[1760823885876,3.60522943,187.39,187.36,5.99731853]
[1760823886089,3.60522943,187.38,187.36,5.99731853]
[1760823886286,105.91286024,187.4,187.36,5.99731853]
[1760823886497,3.60523007,187.39,187.36,5.99731853]
[1760823886688,3.60523007,187.38,187.36,5.99731853]
[1760823886887,105.91286024,187.4,187.36,5.99731853]
[1760823887090,3.60523007,187.39,187.36,5.99731853]
[1760823887270,105.91286024,187.4,187.36,5.99731853]
[1760823887474,3.60487401,187.39,187.36,5.99731853]
[1760823887685,105.91286024,187.4,187.36,5.99731853]
[1760823887879,3.60487401,187.39,187.36,5.99731853]
[1760823888077,105.91286024,187.4,187.36,5.99731853]
[1760823888277,3.60487401,187.39,187.36,5.99731853]
[1760823888477,105.91286024,187.4,187.36,5.99731853]
[1760823888779,3.60460246,187.39,187.36,5.99731853]
[1760823888978,105.91286024,187.4,187.36,5.99731853]
[1760823889178,3.60460202,187.39,187.36,5.99731853]
[1760823889494,105.91286024,187.4,187.36,5.99731853]
[1760823889686,3.60437319,187.39,187.36,5.99731853]
[1760823889986,105.91286024,187.4,187.36,5.99731853]
[1760823890190,3.60437363,187.39,187.36,5.99731853]
[1760823890487,105.91286024,187.4,187.36,5.99731853]
[1760823890690,3.60416278,187.39,187.36,5.99731853]
[1760823890882,105.91286024,187.4,187.36,5.99731853]
[1760823891084,3.60416278,187.39,187.36,0.66]
[1760823891286,105.56286024,187.4,187.37,0.66]
[1760823891489,3.60399068,187.39,187.37,0.66]
[1760823891790,105.56286024,187.4,187.37,0.66]
[1760823891995,3.60399068,187.39,187.37,0.66]
[1760823892174,105.56286024,187.4,187.37,5.9969832]
[1760823892374,3.60382813,187.39,187.37,5.9969832]
[1760823892576,105.56286024,187.4,187.37,5.9969832]
[1760823892896,3.60382856,187.39,187.37,5.9969832]
[1760823893095,105.56286024,187.4,187.37,5.9969832]
[1760823893298,3.60382856,187.39,187.37,5.9969832]
[1760823893591,105.91286024,187.4,187.35,5.33760341]
[1760823893794,3.60367442,187.39,187.36,0.66]
[1760823894014,105.91286024,187.4,187.36,0.66]
[1760823894180,3.6036742,187.39,187.36,0.66]
[1760823894381,22.88,187.35,187.32,16.0492176]
[1760823894694,10.87647521,187.32,187.3,0.2]
[1760823894896,40.82314581,187.31,187.3,0.2]
[1760823895101,3.60381036,187.31,187.3,0.2]
[1760823895595,3.60381036,187.31,187.3,0.86]
[1760823896091,3.60381036,187.31,187.3,0.2]
[1760823897983,3.60381036,187.31,187.3,0.86]
[1760823898787,3.60381036,187.31,187.3,0.2]
[1760823901488,105.56286024,187.35,187.3,6.19900386]
[1760823901681,3.59627935,187.34,187.31,0.66]
[1760823901880,3.59627935,187.33,187.31,0.66]
[1760823902095,3.46286024,187.36,187.31,0.66]
[1760823902379,3.59584992,187.35,187.31,0.66]
[1760823902592,3.59584992,187.34,187.31,0.66]
[1760823902791,3.81286024,187.38,187.31,4.12286024]
[1760823903000,3.59545033,187.37,187.32,0.66]
[1760823903198,3.59545033,187.36,187.32,0.66]
[1760823903403,3.59545033,187.35,187.32,0.66]
[1760823903604,3.81286024,187.38,187.33,5.33817327]
[1760823903780,3.59525526,187.37,187.34,0.66]
[1760823903981,3.59525526,187.36,187.34,0.66]
[1760823904182,3.46286024,187.38,187.34,0.66]
[1760823904383,3.59522602,187.37,187.34,0.66]
[1760823904584,3.59522602,187.36,187.34,5.99775802]
[1760823904786,3.46286024,187.38,187.34,5.99775802]
[1760823904985,3.59515182,187.37,187.35,0.66]
[1760823905204,3.59515182,187.36,187.34,5.33775802]
[1760823905403,3.46286024,187.38,187.35,0.66]
[1760823905602,3.59512411,187.37,187.35,0.66]
[1760823905804,3.59512411,187.36,187.35,0.66]
[1760823910412,3.59512411,187.36,187.34,6.00775802]
[1760823910623,3.46286024,187.38,187.34,6.00775802]
[1760823910794,3.59523833,187.37,187.34,6.00775802]
[1760823910994,3.59523833,187.36,187.34,6.00775802]
[1760823911305,3.46286024,187.38,187.34,6.00775802]
[1760823911504,3.59523335,187.37,187.35,0.67]
[1760823911821,3.59523335,187.36,187.35,0.67]
[1760823915922,3.59517046,187.36,187.35,0.67]
[1760823916221,3.59517046,187.36,187.35,6.00760341]
[1760823916425,102.1,187.37,187.35,6.00760341]
[1760823916720,102.1,187.37,187.36,0.72]
[1760823916928,105.69501741,187.37,187.36,0.72]
[1760823917096,105.69501741,187.37,187.36,6.05731853]
[1760823917299,102.1,187.37,187.36,6.05731853]
[1760823918415,3.46286024,187.41,187.36,6.05731853]
[1760823918615,3.59435614,187.4,187.37,0.72]
[1760823918822,3.59435614,187.39,187.37,0.72]
[1760823919022,3.81286024,187.42,187.37,0.72]
[1760823919204,3.94435376,187.41,187.38,5.33674885]
[1760823919405,3.59435376,187.4,187.38,5.33674885]
[1760823919606,3.59418664,187.39,187.38,5.33674885]
[1760823923501,3.59418664,187.39,187.36,5.33731853]
[1760823923710,3.81286024,187.41,187.37,0.72]
[1760823923917,3.59362053,187.4,187.36,5.33731853]
[1760823924111,3.59362053,187.39,187.37,0.72]
[1760823924419,3.46286024,187.41,187.36,5.33731853]
[1760823924623,3.59349338,187.4,187.38,0.72]
[1760823924827,3.59349338,187.39,187.38,6.05674885]
[1760823933536,3.59349338,187.39,187.38,0.72]
[1760823934734,3.59349338,187.39,187.37,5.33698807]
[1760823934735,3.59349338,187.39,187.37,6.05698807]
[1760823934917,3.81286024,187.42,187.37,6.05698807]
[1760823935118,7.05587189,187.41,187.37,6.05698807]
[1760823935314,3.59301165,187.4,187.37,5.33698807]
[1760823935520,3.59301165,187.39,187.38,0.72]
[1760823936333,3.59301165,187.39,187.36,5.33731853]
[1760823936640,0.35,187.41,187.37,0.72]
[1760823936827,3.59304078,187.4,187.37,0.72]
[1760823937027,3.59304078,187.39,187.37,0.72]
[1760823937229,0.35,187.41,187.38,0.72]
[1760823937429,3.59305685,187.4,187.38,0.72]
[1760823937642,3.59305685,187.39,187.38,0.72]
[1760823939636,3.59305685,187.39,187.36,6.05731853]
[1760823939838,102.45,187.41,187.37,0.72]
[1760823940020,3.59308612,187.4,187.37,0.72]
[1760823940221,3.59308612,187.39,187.37,0.72]
[1760823940421,102.45,187.41,187.36,5.33731853]
[1760823940627,3.59350047,187.4,187.37,0.72]
[1760823940923,3.59350047,187.39,187.37,6.05702815]
[1760823941120,102.45,187.41,187.37,6.05702815]
[1760823941338,3.5935009,187.4,187.38,0.72]
[1760823941539,3.5935009,187.39,187.37,6.05702815]
[1760823941841,102.45,187.41,187.37,0.72]
[1760823942042,3.59404328,187.4,187.37,0.72]
[1760823942230,3.59404328,187.39,187.37,0.72]
[1760823942429,102.45,187.41,187.37,0.72]
[1760823942632,3.94525025,187.4,187.36,5.33731853]
[1760823942821,3.94525025,187.39,187.36,5.33731853]
[1760823943022,0.35,187.39,187.36,5.33731853]
[1760823943217,3.59650692,187.38,187.36,6.05731853]
[1760823943444,0.35,187.39,187.36,6.05731853]